fUSD/lending_fUSD_20250211
["ID","MTS","AMOUNT","RATE_DAILY","PERIOD"]
[352793077,1739317832388,-1112.87,0.00011117,2]
[352793078,1739317832397,-1000.0,0.00011252,2]
[352793079,1739317832407,-194.79,0.00011281,2]
[352793080,1739317832416,-5463.98244536,0.00011381,2]
[352793081,1739317836228,-163.20199949,0.00010997,2]
[352793082,1739317836238,-9214.26114064,0.00011381,2]
[352793083,1739317836250,-296.06898983,0.00011381,2]
[352793084,1739317836289,-456.54858553,0.00011381,2]
[352793165,1739317837885,-519.47672262,0.00011381,2]
[352793166,1739317837896,-607.43293033,0.00011381,2]
[352793167,1739317837908,-341.88452535,0.00011381,2]
[352793168,1739317838071,-3856.73808,0.00011381,2]
[352793169,1739317838083,-3143.60658034,0.00011381,2]
[352793170,1739317838093,-157.43,0.00011381,2]
[352793171,1739317838104,-157.43,0.00011381,2]
[352793172,1739317838117,-157.43,0.00011381,2]
[352793173,1739317838127,-157.43,0.00011381,2]
[352793174,1739317838136,-157.43,0.00011381,2]
[352793175,1739317838146,-162.13,0.0001139,2]
[352793176,1739317838157,-275.1,0.00011435,2]
[352793177,1739317838166,-1052.51,0.00011755,2]
[352793178,1739317838175,-549.50341966,0.00011855,2]
[352793179,1739317838188,-5571.0,0.00011855,2]
[352793180,1739317838200,-811.899985,0.00011855,2]
[352793181,1739317838217,-297.40472438,0.00011855,2]
[352793183,1739317838226,-19183.6125332,0.00011856,2]
[352793356,1739317840058,-512.6142,0.00011856,2]
[352793357,1739317840070,-1285.24409397,0.00011856,2]
[352793358,1739317840080,-159.89534736,0.00012186,2]
[352793359,1739317840090,-1422.29,0.00012522,2]
[352793360,1739317840100,-450.35043022,0.00012526,2]
[352793361,1739317840115,-356.72,0.00012526,2]
[352793362,1739317840127,-615.21956978,0.00012526,2]
[352793363,1739317840136,-1422.29,0.00012529,2]
[352793364,1739317840145,-79.0322795,0.00012532,2]
[352793365,1739317840157,-434.5510852,0.00012532,2]
[352793366,1739317840169,-908.7066353,0.00012532,2]
[352793367,1739317840180,-1422.29,0.00012536,2]
[352793368,1739317840191,-470.62337202,0.00012539,2]
[352793369,1739317840207,-292.02901953,0.00012539,2]
[352793370,1739317840219,-364.56184622,0.00012539,2]
[352793371,1739317840231,-295.07576223,0.00012539,2]
[352793372,1739317840240,-151.0,0.00012542,2]
[352793373,1739317840250,-1422.29,0.00012542,2]
[352793374,1739317840259,-408.06344681,0.00012545,2]
[352793375,1739317840271,-350.0,0.00012545,2]
[352793376,1739317840327,-664.22655319,0.00012545,2]
[352793377,1739317840336,-1422.29,0.00012549,2]
[352793378,1739317840347,-1422.29,0.00012552,2]
[352793379,1739317840357,-1422.29,0.00012555,2]
[352793380,1739317840367,-314.08657707,0.00012558,2]
[352793381,1739317840377,-1422.29,0.00012559,2]
[352793382,1739317840387,-1422.29,0.00012562,2]
[352793383,1739317840397,-1422.29,0.00012565,2]
[352793384,1739317840407,-1422.29,0.00012569,2]
[352793385,1739317840417,-1422.29,0.00012572,2]
[352793386,1739317840427,-1422.29,0.00012575,2]
[352793387,1739317840436,-1422.29,0.00012578,2]
[352793388,1739317840446,-1422.29,0.00012582,2]
[352793389,1739317840457,-1422.29,0.00012585,2]
[352793390,1739317840467,-1000.0,0.00012659,2]
[352793391,1739317840477,-180.60686975,0.00012669,2]
[352793392,1739317840489,-777.71313025,0.00012669,2]
[352793393,1739317840499,-275.1,0.00012705,2]
[352793394,1739317840509,-7229.80812904,0.00012711,2]
[352793395,1739317840519,-682.45,0.00012761,2]
[352793396,1739317840528,-20981.47082717,0.00012833,2]
[352793397,1739317840537,-50429.50886242,0.00013,2]
[352793398,1739317840547,-550.0,0.00013,2]
[352793399,1739317840556,-222.0,0.00013067,2]
[352793400,1739317840566,-159.89534736,0.00013329,2]
[352793401,1739317840575,-250.0,0.00013474,2]
[352793402,1739317840584,-7229.80812904,0.00013567,2]
[352793403,1739317840594,-200.0,0.00013699,2]
[352793404,1739317840603,-258.52,0.00013699,2]
[352793405,1739317840613,-1186.75,0.000137,2]
[352793406,1739317840622,-1186.75,0.000137,2]
[352793407,1739317840632,-20981.47082717,0.00013811,2]
[352793408,1739317840642,-275.1,0.00013976,2]
[352793409,1739317840651,-1052.51,0.00014019,2]
[352793410,1739317840660,-1000.0,0.00014052,2]
[352793411,1739317840669,-1000.0,0.00014065,2]
[352793412,1739317840679,-900.0,0.00014068,2]
[352793413,1739317840688,-314.08657707,0.00014119,2]
[352793414,1739317840697,-1000.0,0.00014228,2]
[352793415,1739317840706,-877.68,0.00014247,2]
[352793416,1739317840717,-150.0,0.00014247,2]
[352793417,1739317840726,-300.0,0.00014247,2]
[352793418,1739317840735,-150.0,0.00014247,2]
[352793419,1739317840745,-2180.0,0.00014327,2]
[352793420,1739317840754,-682.45,0.00014356,2]
[352793421,1739317840763,-7229.80812904,0.00014423,2]
[352793422,1739317840774,-162.6,0.00014433,2]
[352793423,1739317840783,-159.89534736,0.00014471,2]
[352793424,1739317840792,-600.0,0.00015,2]
[352793425,1739317840803,-424.61,0.00015,2]
[352793426,1739317840812,-500.0,0.00015,2]
[352793427,1739317840822,-500.0,0.00015,2]
[352793428,1739317840831,-500.0,0.00015,2]
[352793429,1739317840841,-500.0,0.00015,2]
[352793430,1739317840851,-657.72234,0.00015,2]
[352793431,1739317840860,-150.0,0.00015068,2]
[352793432,1739317840869,-600.0,0.00015164,2]
[352793433,1739317840879,-500.0,0.00015164,2]
[352793434,1739317840888,-275.1,0.00015246,2]
[352793435,1739317840898,-7229.80812904,0.00015278,2]
[352793436,1739317840908,-438.38,0.00015356,2]
[352793437,1739317840917,-150.0,0.00015356,2]
[352793438,1739317840927,-900.0,0.00015438,2]
[352793439,1739317840937,-1000.0,0.00015472,2]
[352793440,1739317840946,-1112.87,0.00015564,2]
[352793441,1739317840956,-314.08657707,0.00015681,2]
[352793442,1739317840965,-150.0,0.00015707,2]
[352793443,1739317840975,-150.0,0.00015707,2]
[352793444,1739317840985,-150.0,0.00015707,2]
[352793445,1739317840994,-150.0,0.00015707,2]
[352793446,1739317841004,-150.0,0.0001573,2]
[352793447,1739317841014,-150.0,0.00015752,2]
[352793448,1739317841023,-150.0,0.00015755,2]
[352793449,1739317841033,-150.0,0.00015775,2]
[352793450,1739317841042,-150.0,0.00015783,2]
[352793451,1739317841051,-150.0,0.00015798,2]
[352793452,1739317841061,-150.0,0.00015804,2]
[352793453,1739317841071,-150.0,0.0001582,2]
[352793454,1739317841080,-150.0,0.00015843,2]
[352793455,1739317841090,-150.0,0.00015852,2]
[352793456,1739317841100,-150.0,0.00015859,2]
[352793457,1739317841113,-150.0,0.00015866,2]
[352793458,1739317841122,-150.0,0.00015888,2]
[352793459,1739317841131,-600.0,0.000159,5]
[352793460,1739317841141,-150.0,0.00015901,2]
[352793461,1739317841151,-150.0,0.00015901,2]
[352793462,1739317841160,-150.0,0.00015911,2]
[352793463,1739317841169,-150.0,0.00015933,2]
[352793464,1739317841179,-150.0,0.00015934,2]
[352793465,1739317841191,-150.0,0.00015949,2]
[352793466,1739317841201,-682.45,0.00015951,2]
[352793467,1739317841211,-150.0,0.00015956,2]
[352793468,1739317841221,-150.0,0.00015979,2]
[352793469,1739317841230,-150.0,0.00015998,2]
[352793470,1739317841239,-2000.0,0.00016,2]
[352793471,1739317841249,-150.0,0.00016001,2]
[352793472,1739317841258,-176.44,0.00016003,2]
[352793473,1739317841267,-150.0,0.0001601,2]
[352793474,1739317841276,-150.0,0.00016019,2]
[352793475,1739317841285,-150.0,0.00016024,2]
[352793476,1739317841295,-150.0,0.00016045,2]
[352793477,1739317841304,-150.0,0.00016046,2]
[352793478,1739317841313,-150.0,0.00016047,2]
[352793479,1739317841323,-150.0,0.00016069,2]
[352793480,1739317841332,-150.0,0.00016086,2]
[352793481,1739317841341,-150.0,0.00016092,2]
[352793482,1739317841350,-150.0,0.00016095,2]
[352793483,1739317841359,-150.0,0.00016095,2]
[352793484,1739317841369,-150.0,0.00016115,2]
[352793485,1739317841379,-7229.80812904,0.00016134,2]
[352793486,1739317841388,-150.0,0.00016137,2]
[352793487,1739317841399,-150.0,0.00016143,2]
[352793488,1739317841408,-150.0,0.0001616,2]
[352793489,1739317841418,-150.0,0.00016162,2]
[352793490,1739317841428,-150.0,0.00016183,2]
[352793491,1739317841438,-150.0,0.00016192,2]
[352793492,1739317841448,-152.0,0.00016196,3]
[352793493,1739317841458,-313.33,0.000162,2]
[352793494,1739317841468,-150.0,0.00016201,2]
[352793495,1739317841477,-150.0,0.00016205,2]
[352793496,1739317841486,-150.0,0.00016228,2]
[352793497,1739317841495,-150.65,0.00016228,2]
[352793498,1739317841504,-150.0,0.00016228,2]
[352793499,1739317841513,-150.0,0.00016238,2]
[352793500,1739317841523,-1273.0,0.00016238,2]
[352793501,1739317841532,-2024.0,0.00016238,2]
[352793502,1739317841542,-1828.0,0.00016238,2]
[352793503,1739317841551,-2955.0,0.00016238,2]
[352793504,1739317841560,-783.0,0.00016238,2]
[352793505,1739317841569,-987.647,0.00016238,2]
[352793506,1739317841579,-1264.0,0.00016238,2]
[352793507,1739317841589,-539.0,0.00016238,2]
[352793508,1739317841598,-4026.0,0.00016238,2]
[352793509,1739317841607,-3914.0,0.00016238,2]
[352793510,1739317841616,-150.0,0.00016238,2]
[352793511,1739317841625,-1007.0,0.00016238,2]
[352793512,1739317841634,-150.364,0.00016238,2]
[352793513,1739317841643,-1109.0,0.00016238,2]
[352793514,1739317841652,-150.0,0.0001624,2]
[352793515,1739317841662,-150.0,0.00016251,2]
[352793516,1739317841671,-150.0,0.00016273,2]
[352793517,1739317841680,-1052.51,0.00016283,2]
[352793518,1739317841689,-150.0,0.00016289,2]
[352793519,1739317841699,-150.0,0.00016289,2]
[352793520,1739317841708,-150.0,0.00016296,2]
[352793521,1739317841717,-150.0,0.00016301,2]
[352793522,1739317841727,-150.0,0.00016314,2]
[352793523,1739317841736,-150.0,0.00016319,2]
[352793524,1739317841746,-150.0,0.00016337,2]
[352793525,1739317841755,-171.33830288,0.00016338,2]
[352793526,1739317841765,-163.20199948,0.00016338,2]
[352793527,1739317841774,-150.0,0.00016341,2]
[352793528,1739317841784,-150.0,0.00016364,2]
[352793529,1739317841793,-346.2362964,0.0001637,2]
[352793530,1739317841802,-150.0,0.00016383,2]
[352793531,1739317841812,-150.0,0.00016386,2]
[352793532,1739317841821,-150.0,0.00016387,2]
[352793533,1739317841831,-150.0,0.0001639,2]
[352793534,1739317841840,-150.0,0.00016401,2]
[352793535,1739317841849,-150.0,0.00016409,2]
[352793536,1739317841859,-150.65,0.00016428,2]
[352793537,1739317841869,-150.0,0.00016432,2]
[352793538,1739317841879,-150.0,0.00016434,2]
[352793539,1739317841888,-1355.44,0.00016437,2]
[352793540,1739317841897,-356.471985,0.00016438,2]
[352793541,1739317841907,-314.217424,0.00016438,2]
[352793542,1739317841917,-500.0,0.00016438,2]
[352793543,1739317841927,-500.0,0.00016438,2]
[352793544,1739317841936,-500.0,0.00016438,2]
[352793545,1739317841945,-253.1809943,0.00016438,2]
[352793546,1739317841955,-500.0,0.00016438,2]
[352793547,1739317841965,-500.0,0.00016438,2]
[352793548,1739317841974,-500.0,0.00016438,2]
[352793549,1739317841983,-500.0,0.00016438,2]
[352793550,1739317841993,-500.0,0.00016438,2]
[352793551,1739317842003,-500.0,0.00016438,2]
[352793552,1739317842013,-500.0,0.00016438,2]
[352793553,1739317842023,-500.0,0.00016438,2]
[352793554,1739317842033,-500.0,0.00016438,2]
[352793555,1739317842042,-500.0,0.00016438,2]
[352793556,1739317842051,-500.0,0.00016438,2]
[352793557,1739317842061,-500.0,0.00016438,2]
[352793558,1739317842070,-500.0,0.00016438,2]
[352793559,1739317842079,-500.0,0.00016438,2]
[352793560,1739317842089,-500.0,0.00016438,2]
[352793561,1739317842098,-500.0,0.00016438,2]
[352793562,1739317842110,-500.0,0.00016438,2]
[352793563,1739317842119,-500.0,0.00016438,2]
[352793564,1739317842128,-400.20639953,0.00016438,2]
[352793565,1739317842138,-347.6720065,0.00016438,2]
[352793566,1739317842147,-500.0,0.00016438,2]
[352793567,1739317842158,-500.0,0.00016438,2]
[352793568,1739317842167,-500.0,0.00016438,2]
[352793569,1739317842177,-265.03305745,0.00016438,2]
[352793570,1739317842187,-500.0,0.00016438,2]
[352793571,1739317842197,-500.0,0.00016438,2]
[352793572,1739317842206,-500.0,0.00016438,2]
[352793573,1739317842215,-500.0,0.00016438,2]
[352793574,1739317842225,-500.0,0.00016438,2]
[352793575,1739317842234,-500.0,0.00016438,2]
[352793576,1739317842243,-500.0,0.00016438,2]
[352793577,1739317842253,-500.0,0.00016438,2]
[352793578,1739317842263,-207.07295982,0.00016438,2]
[352793579,1739317842272,-500.0,0.00016438,2]
[352793580,1739317842281,-500.0,0.00016438,2]
[352793581,1739317842291,-500.0,0.00016438,2]
[352793582,1739317842300,-500.0,0.00016438,2]
[352793583,1739317842309,-500.0,0.00016438,2]
[352793584,1739317842318,-500.0,0.00016438,2]
[352793585,1739317842327,-500.0,0.00016438,2]
[352793586,1739317842336,-500.0,0.00016438,2]
[352793587,1739317842345,-500.0,0.00016438,2]
[352793588,1739317842355,-500.0,0.00016438,2]
[352793589,1739317842365,-500.0,0.00016438,2]
[352793590,1739317842375,-500.0,0.00016438,2]
[352793591,1739317842384,-500.0,0.00016438,2]
[352793592,1739317842393,-500.0,0.00016438,2]
[352793593,1739317842402,-500.0,0.00016438,2]
[352793594,1739317842564,-500.0,0.00016438,2]
[352793595,1739317842574,-500.0,0.00016438,2]
[352793596,1739317842583,-500.0,0.00016438,2]
[352793597,1739317842594,-500.0,0.00016438,2]
[352793598,1739317842603,-500.0,0.00016438,2]
[352793599,1739317842613,-500.0,0.00016438,2]
[352793600,1739317842623,-602.76081255,0.00016438,2]
[352793601,1739317842633,-500.0,0.00016438,2]
[352793602,1739317842643,-842.52,0.00016438,2]
[352793603,1739317842653,-500.0,0.00016438,2]
[352793604,1739317842663,-500.0,0.00016438,2]
[352793605,1739317842673,-500.0,0.00016438,2]
[352793606,1739317842682,-500.0,0.00016438,2]
[352793607,1739317842691,-500.0,0.00016438,2]
[352793608,1739317842700,-500.0,0.00016438,2]
[352793609,1739317842710,-500.0,0.00016438,2]
[352793610,1739317842720,-500.0,0.00016438,2]
[352793611,1739317842729,-574.19307595,0.00016438,2]
[352793612,1739317842738,-500.0,0.00016438,2]
[352793613,1739317842747,-500.0,0.00016438,2]
[352793614,1739317842756,-500.0,0.00016438,2]
[352793615,1739317842766,-500.0,0.00016438,2]
[352793616,1739317842774,-500.0,0.00016438,2]
[352793617,1739317842783,-500.0,0.00016438,2]
[352793618,1739317842792,-500.0,0.00016438,2]
[352793619,1739317842802,-500.0,0.00016438,2]
[352793621,1739317842811,-500.0,0.00016438,2]
[352793622,1739317842820,-500.0,0.00016438,2]
[352793624,1739317842829,-500.0,0.00016438,2]
[352793626,1739317842839,-500.0,0.00016438,2]
[352793627,1739317842849,-190.56967336,0.00016438,2]
[352793628,1739317842859,-500.0,0.00016438,2]
[352793629,1739317842868,-504.62538068,0.00016438,2]
[352793630,1739317842877,-419.92473953,0.00016438,2]
[352793631,1739317842887,-500.0,0.00016438,2]
[352793632,1739317842896,-500.0,0.00016438,2]
[352793634,1739317842905,-500.0,0.00016438,2]
[352793636,1739317842915,-500.0,0.00016438,2]
[352793637,1739317842924,-500.0,0.00016438,2]
[352793639,1739317842934,-500.0,0.00016438,2]
[352793641,1739317842943,-500.0,0.00016438,2]
[352793643,1739317842952,-500.0,0.00016438,2]
[352793645,1739317842962,-500.0,0.00016438,2]
[352793646,1739317842971,-500.0,0.00016438,2]
[352793647,1739317842980,-500.0,0.00016438,2]
[352793648,1739317842990,-500.0,0.00016438,2]
[352793650,1739317842999,-500.0,0.00016438,2]
[352793652,1739317843009,-661.63,0.00016438,2]
[352793653,1739317843019,-500.0,0.00016438,2]
[352793654,1739317843028,-500.0,0.00016438,2]
[352793655,1739317843038,-500.0,0.00016438,2]
[352793656,1739317843047,-500.0,0.00016438,2]
[352793657,1739317843056,-500.0,0.00016438,2]
[352793658,1739317843066,-793.31,0.00016438,2]
[352793659,1739317843076,-500.0,0.00016438,2]
[352793660,1739317843085,-500.0,0.00016438,2]
[352793661,1739317843094,-581.38,0.00016438,2]
[352793662,1739317843104,-500.0,0.00016438,2]
[352793663,1739317843117,-500.0,0.00016438,2]
[352793664,1739317843127,-500.0,0.00016438,2]
[352793665,1739317843136,-500.0,0.00016438,2]
[352793666,1739317843145,-500.0,0.00016438,2]
[352793667,1739317843154,-500.0,0.00016438,2]
[352793668,1739317843164,-500.0,0.00016438,2]
[352793669,1739317843173,-500.0,0.00016438,2]
[352793670,1739317843183,-500.0,0.00016438,2]
[352793671,1739317843193,-500.0,0.00016438,2]
[352793672,1739317843203,-500.0,0.00016438,2]
[352793673,1739317843212,-500.0,0.00016438,2]
[352793674,1739317843222,-500.0,0.00016438,2]
[352793675,1739317843231,-500.0,0.00016438,2]
[352793676,1739317843240,-500.0,0.00016438,2]
[352793677,1739317843250,-500.0,0.00016438,2]
[352793678,1739317843259,-500.0,0.00016438,2]
[352793679,1739317843269,-500.0,0.00016438,2]
[352793680,1739317843279,-500.0,0.00016438,2]
[352793681,1739317843288,-500.0,0.00016438,2]
[352793682,1739317843297,-500.0,0.00016438,2]
[352793683,1739317843307,-500.0,0.00016438,2]
[352793684,1739317843316,-500.0,0.00016438,2]
[352793685,1739317843325,-500.0,0.00016438,2]
[352793686,1739317843335,-475.34473607,0.00016438,2]
[352793687,1739317843344,-500.0,0.00016438,2]
[352793688,1739317843353,-500.0,0.00016438,2]
[352793689,1739317843362,-500.0,0.00016438,2]
[352793690,1739317843371,-500.0,0.00016438,2]
[352793691,1739317843381,-500.0,0.00016438,2]
[352793692,1739317843390,-500.0,0.00016438,2]
[352793693,1739317843400,-500.0,0.00016438,2]
[352793694,1739317843409,-500.0,0.00016438,2]
[352793695,1739317843418,-500.0,0.00016438,2]
[352793696,1739317843428,-500.0,0.00016438,2]
[352793697,1739317843437,-500.0,0.00016438,2]
[352793698,1739317843447,-500.0,0.00016438,2]
[352793699,1739317843456,-500.0,0.00016438,2]
[352793700,1739317843466,-500.0,0.00016438,2]
[352793701,1739317843476,-500.0,0.00016438,2]
[352793702,1739317843485,-500.0,0.00016438,2]
[352793703,1739317843495,-500.0,0.00016438,2]
[352793704,1739317843505,-500.0,0.00016438,2]
[352793705,1739317843515,-500.0,0.00016438,2]
[352793706,1739317843524,-500.0,0.00016438,2]
[352793707,1739317843533,-500.0,0.00016438,2]
[352793708,1739317843544,-500.0,0.00016438,2]
[352793709,1739317843553,-500.0,0.00016438,2]
[352793710,1739317843563,-500.0,0.00016438,2]
[352793711,1739317843571,-500.0,0.00016438,2]
[352793712,1739317843581,-500.0,0.00016438,2]
[352793713,1739317843590,-500.0,0.00016438,2]
[352793714,1739317843599,-500.0,0.00016438,2]
[352793715,1739317843608,-500.0,0.00016438,2]
[352793716,1739317843618,-500.0,0.00016438,2]
[352793717,1739317843627,-500.0,0.00016438,2]
[352793718,1739317843637,-500.0,0.00016438,2]
[352793719,1739317843646,-500.0,0.00016438,2]
[352793720,1739317843655,-500.0,0.00016438,2]
[352793721,1739317843664,-500.0,0.00016438,2]
[352793722,1739317843674,-500.0,0.00016438,2]
[352793723,1739317843683,-500.0,0.00016438,2]
[352793724,1739317843692,-420.94,0.00016438,2]
[352793725,1739317843702,-500.0,0.00016438,2]
[352793726,1739317843713,-500.0,0.00016438,2]
[352793727,1739317843722,-500.0,0.00016438,2]
[352793728,1739317843731,-502.06597499,0.00016438,2]
[352793729,1739317843742,-500.0,0.00016438,2]
[352793730,1739317843751,-500.0,0.00016438,2]
[352793731,1739317843760,-500.0,0.00016438,2]
[352793732,1739317843769,-500.0,0.00016438,2]
[352793733,1739317843779,-500.0,0.00016438,2]
[352793734,1739317843788,-500.0,0.00016438,2]
[352793735,1739317843797,-500.0,0.00016438,2]
[352793736,1739317843806,-500.0,0.00016438,2]
[352793737,1739317843816,-500.0,0.00016438,2]
[352793738,1739317843825,-500.0,0.00016438,2]
[352793739,1739317843834,-500.0,0.00016438,2]
[352793740,1739317843843,-414.17,0.00016438,2]
[352793741,1739317843852,-500.0,0.00016438,2]
[352793742,1739317843862,-1112.71,0.00016438,2]
[352793743,1739317843871,-500.0,0.00016438,2]
[352793744,1739317843881,-500.0,0.00016438,2]
[352793745,1739317843890,-500.0,0.00016438,2]
[352793746,1739317843899,-500.0,0.00016438,2]
[352793747,1739317843910,-500.0,0.00016438,2]
[352793748,1739317843919,-500.0,0.00016438,2]
[352793749,1739317843929,-505.3407101,0.00016438,2]
[352793750,1739317843938,-500.0,0.00016438,2]
[352793751,1739317843947,-500.0,0.00016438,2]
[352793752,1739317843956,-1542.01,0.00016438,2]
[352793753,1739317843968,-500.0,0.00016438,2]
[352793754,1739317843978,-500.0,0.00016438,2]
[352793755,1739317843987,-500.0,0.00016438,2]
[352793756,1739317843998,-500.0,0.00016438,2]
[352793757,1739317844007,-500.0,0.00016438,2]
[352793758,1739317844017,-500.0,0.00016438,2]
[352793759,1739317844027,-500.0,0.00016438,2]
[352793760,1739317844037,-500.0,0.00016438,2]
[352793761,1739317844046,-500.0,0.00016438,2]
[352793762,1739317844056,-500.0,0.00016438,2]
[352793763,1739317844066,-500.0,0.00016438,2]
[352793764,1739317844075,-500.0,0.00016438,2]
[352793765,1739317844084,-500.0,0.00016438,2]
[352793766,1739317844095,-500.0,0.00016438,2]
[352793767,1739317844104,-500.0,0.00016438,2]
[352793768,1739317844116,-508.31770099,0.00016438,2]
[352793769,1739317844125,-500.0,0.00016438,2]
[352793770,1739317844134,-502.57357539,0.00016438,2]
[352793771,1739317844144,-500.0,0.00016438,2]
[352793772,1739317844154,-500.0,0.00016438,2]
[352793773,1739317844164,-500.0,0.00016438,2]
[352793774,1739317844173,-500.0,0.00016438,2]
[352793775,1739317844185,-500.0,0.00016438,2]
[352793776,1739317844194,-500.0,0.00016438,2]
[352793777,1739317844203,-500.0,0.00016438,2]
[352793778,1739317844212,-500.0,0.00016438,2]
[352793779,1739317844222,-500.0,0.00016438,2]
[352793780,1739317844231,-500.0,0.00016438,2]
[352793781,1739317844241,-269.87289921,0.00016438,2]
[352793782,1739317844250,-500.0,0.00016438,2]
[352793783,1739317844259,-500.0,0.00016438,2]
[352793784,1739317844268,-500.0,0.00016438,2]
[352793785,1739317844278,-500.0,0.00016438,2]
[352793786,1739317844288,-500.0,0.00016438,2]
[352793787,1739317844298,-500.0,0.00016438,2]
[352793788,1739317844308,-626.88489318,0.00016438,2]
[352793789,1739317844317,-500.0,0.00016438,2]
[352793790,1739317844326,-500.0,0.00016438,2]
[352793791,1739317844335,-500.0,0.00016438,2]
[352793792,1739317844345,-500.0,0.00016438,2]
[352793793,1739317844355,-500.0,0.00016438,2]
[352793794,1739317844364,-500.0,0.00016438,2]
[352793795,1739317844374,-500.0,0.00016438,2]
[352793796,1739317844383,-500.0,0.00016438,2]
[352793797,1739317844392,-500.0,0.00016438,2]
[352793798,1739317844401,-500.0,0.00016438,2]
[352793799,1739317844410,-500.0,0.00016438,2]
[352793800,1739317844419,-500.0,0.00016438,2]
[352793801,1739317844428,-500.0,0.00016438,2]
[352793802,1739317844437,-500.0,0.00016438,2]
[352793803,1739317844446,-500.0,0.00016438,2]
[352793804,1739317844456,-505.2696103,0.00016438,2]
[352793805,1739317844466,-500.0,0.00016438,2]
[352793806,1739317844475,-500.0,0.00016438,2]
[352793807,1739317844484,-518.71,0.00016438,2]
[352793808,1739317844494,-500.0,0.00016438,2]
[352793809,1739317844503,-307.34920151,0.00016438,2]
[352793810,1739317844513,-551.51018882,0.00016438,2]
[352793811,1739317844522,-500.0,0.00016438,2]
[352793812,1739317844531,-500.0,0.00016438,2]
[352793813,1739317844541,-699.13,0.00016438,2]
[352793814,1739317844550,-500.0,0.00016438,2]
[352793815,1739317844560,-500.0,0.00016438,2]
[352793816,1739317844569,-500.0,0.00016438,2]
[352793817,1739317844578,-500.0,0.00016438,2]
[352793818,1739317844587,-500.0,0.00016438,2]
[352793819,1739317844596,-500.0,0.00016438,2]
[352793820,1739317844605,-500.0,0.00016438,2]
[352793821,1739317844614,-500.0,0.00016438,2]
[352793822,1739317844624,-500.0,0.00016438,2]
[352793823,1739317844643,-519.13,0.00016438,2]
[352793824,1739317844653,-500.0,0.00016438,2]
[352793825,1739317844662,-500.0,0.00016438,2]
[352793826,1739317844672,-1843.14,0.00016438,2]
[352793827,1739317844681,-500.0,0.00016438,2]
[352793828,1739317844691,-500.0,0.00016438,2]
[352793829,1739317844701,-500.0,0.00016438,2]
[352793830,1739317844712,-645.99281581,0.00016438,2]
[352793831,1739317844721,-500.0,0.00016438,2]
[352793832,1739317844731,-500.0,0.00016438,2]
[352793833,1739317844741,-500.0,0.00016438,2]
[352793834,1739317844751,-610.8,0.00016438,2]
[352793835,1739317844761,-500.0,0.00016438,2]
[352793836,1739317844774,-500.0,0.00016438,2]
[352793837,1739317844783,-500.0,0.00016438,2]
[352793838,1739317844793,-500.0,0.00016438,2]
[352793839,1739317844803,-500.0,0.00016438,2]
[352793840,1739317844812,-500.0,0.00016438,2]